Workbook

Sheet 計算式
B6: spinのイメージ
B8: P:重力ポテンシャル
B9: k:波数
B10: ω:角周波数
B13: P=cos(k*x)cos(ωt)-cos(k*y)cos(ωt+π/2)
B14: k
B18: x1,y1：粒子１の位置
B19: x2,y2：粒子2の位置
B21: x1=(1/k)(π/2-(π/4)cos(ωt)
B22: y1=(1/k)(-π/2+(π/4)sin(ωt)
B24: x2=-x1
B25: y2=y1

Sheet Sheet1
E1: k*x1 | F1: =3.14159/2-(3.14159/4)*COS($C$4*$C$3) -> 0.7853975
E2: k*y1 | F2: =-3.14159/2+(3.14159/4)*SIN($C$4*$C$3) -> -1.570795
A3: t | C3: 0 | E3: k*x2 | F3: =-F1 -> -0.7853975
A4: ω | C4: 3.1416 | E4: k*y2 | F4: =+F2 -> -1.570795
A6: k | C6: =3.14159/12 -> 0.2617991667
C9: x | D9: -18 | E9: =1+D9 -> -17 | F9: =1+E9 -> -16 | G9: -15 | H9: -14 | I9: -13 | J9: -12 | K9: -11 | L9: -10 | M9: -9 | N9: -8 | O9: -7 | P9: -6 | Q9: -5 | R9: -4 | S9: -3 | T9: -2 | U9: -1 | V9: 0 | W9: 1 | X9: 2 | Y9: 3 | Z9: 4 | AA9: 5 | AB9: 6 | AC9: 7 | AD9: 8 | AE9: 9 | AF9: 10 | AG9: 11 | AH9: 12 | AI9: 13 | AJ9: 14 | AK9: =1+AJ9 -> 15 | AL9: =1+AK9 -> 16 | AM9: 17 | AN9: 18
A11: y | D11: =+$C$6*D9 -> -4.712385 | E11: =+$C$6*E9 -> -4.450585833 | F11: =+$C$6*F9 -> -4.188786667 | G11: -3.9269875 | H11: -3.665188333 | I11: -3.403389167 | J11: -3.14159 | K11: -2.879790833 | L11: -2.617991667 | M11: -2.3561925 | N11: -2.094393333 | O11: -1.832594167 | P11: -1.570795 | Q11: -1.308995833 | R11: -1.047196667 | S11: -0.7853975 | T11: -0.5235983333 | U11: -0.2617991667 | V11: 0 | W11: 0.2617991667 | X11: 0.5235983333 | Y11: 0.7853975 | Z11: 1.047196667 | AA11: 1.308995833 | AB11: 1.570795 | AC11: 1.832594167 | AD11: 2.094393333 | AE11: 2.3561925 | AF11: 2.617991667 | AG11: 2.879790833 | AH11: 3.14159 | AI11: 3.403389167 | AJ11: 3.665188333 | AK11: =+$C$6*AK9 -> 3.9269875 | AL11: =+$C$6*AL9 -> 4.188786667 | AM11: 4.450585833 | AN11: 4.712385
A12: -18 | C12: =+$C$6*A12 -> -4.712385 | D12: =+IF((((((D$11-$F$1)^2)+(($C12-$F$2)^2))<0.1)+((((D$11-$F$3)^2)+(($C12-$F$4)^2))<0.1)),2,COS(D$11)*COS($C$4*$C$3)-COS($C12)*COS($C$4*$C$3+3.141592/2)) -> -3.98038339e-06 | E12: =+IF((((((E$11-$F$1)^2)+(($C12-$F$2)^2))<0.1)+((((E$11-$F$3)^2)+(($C12-$F$4)^2))<0.1)),2,COS(E$11)*COS($C$4*$C$3)-COS($C12)*COS($C$4*$C$3+3.141592/2)) -> -0.2588226763 | F12: -0.5000030641 | G12: -0.7071091266 | H12: -0.8660269517 | I12: -0.9659265703 | J12: -1 | K12: -0.9659251967 | L12: -0.8660242981 | M12: -0.7071053739 | N12: -0.4999984679 | O12: -0.2588175499 | P12: 1.326796197e-06 | Q12: 0.2588201131 | R12: 0.500000766 | S12: 0.7071072503 | T12: 0.8660256249 | U12: =+IF((((((U$11-$F$1)^2)+(($C12-$F$2)^2))<0.1)+((((U$11-$F$3)^2)+(($C12-$F$4)^2))<0.1)),2,COS(U$11)*COS($C$4*$C$3)-COS($C12)*COS($C$4*$C$3+3.141592/2)) -> 0.9659258835 | V12: 1 | W12: 0.9659258835 | X12: 0.8660256249 | Y12: 0.7071072503 | Z12: 0.500000766 | AA12: 0.2588201131 | AB12: 1.326796197e-06 | AC12: -0.2588175499 | AD12: -0.4999984679 | AE12: -0.7071053739 | AF12: -0.8660242981 | AG12: -0.9659251967 | AH12: -1 | AI12: -0.9659265703 | AJ12: -0.8660269517 | AK12: =+IF((((((AK$11-$F$1)^2)+(($C12-$F$2)^2))<0.1)+((((AK$11-$F$3)^2)+(($C12-$F$4)^2))<0.1)),2,COS(AK$11)*COS($C$4*$C$3)-COS($C12)*COS($C$4*$C$3+3.141592/2)) -> -0.7071091266 | AL12: -0.5000030641 | AM12: -0.2588226763 | AN12: -3.98038339e-06
A13: =1+A12 -> -17 | C13: =+$C$6*A12 -> -4.712385 | D13: =+IF((((((D$11-$F$1)^2)+(($C13-$F$2)^2))<0.1)+((((D$11-$F$3)^2)+(($C13-$F$4)^2))<0.1)),2,COS(D$11)*COS($C$4*$C$3)-COS($C13)*COS($C$4*$C$3+3.141592/2)) -> -3.98038339e-06 | E13: -0.2588226763 | F13: -0.5000030641 | G13: -0.7071091266 | H13: -0.8660269517 | I13: -0.9659265703 | J13: -1 | K13: -0.9659251967 | L13: -0.8660242981 | M13: -0.7071053739 | N13: -0.4999984679 | O13: -0.2588175499 | P13: 1.326796197e-06 | Q13: 0.2588201131 | R13: 0.500000766 | S13: 0.7071072503 | T13: 0.8660256249 | U13: 0.9659258835 | V13: 1 | W13: 0.9659258835 | X13: 0.8660256249 | Y13: 0.7071072503 | Z13: 0.500000766 | AA13: 0.2588201131 | AB13: 1.326796197e-06 | AC13: -0.2588175499 | AD13: -0.4999984679 | AE13: -0.7071053739 | AF13: -0.8660242981 | AG13: -0.9659251967 | AH13: -1 | AI13: -0.9659265703 | AJ13: -0.8660269517 | AK13: -0.7071091266 | AL13: -0.5000030641 | AM13: -0.2588226763 | AN13: -3.98038339e-06
A14: =1+A13 -> -16 | C14: =+$C$6*A13 -> -4.450585833 | D14: -3.895802761e-06 | E14: -0.2588225917 | F14: -0.5000029795 | G14: -0.7071090421 | H14: -0.8660268671 | I14: -0.9659264857 | J14: -0.9999999154 | K14: -0.9659251121 | L14: -0.8660242135 | M14: -0.7071052893 | N14: -0.4999983834 | O14: -0.2588174653 | P14: 1.411376826e-06 | Q14: 0.2588201977 | R14: 0.5000008506 | S14: 0.7071073349 | T14: 0.8660257095 | U14: 0.9659259681 | V14: 1.000000085 | W14: 0.9659259681 | X14: 0.8660257095 | Y14: 0.7071073349 | Z14: 0.5000008506 | AA14: 0.2588201977 | AB14: 1.411376826e-06 | AC14: -0.2588174653 | AD14: -0.4999983834 | AE14: -0.7071052893 | AF14: -0.8660242135 | AG14: -0.9659251121 | AH14: -0.9999999154 | AI14: -0.9659264857 | AJ14: -0.8660268671 | AK14: -0.7071090421 | AL14: -0.5000029795 | AM14: -0.2588225917 | AN14: -3.895802761e-06
A15: -15 | C15: -4.188786667 | D15: -3.816986241e-06 | E15: -0.2588225129 | F15: -0.5000029007 | G15: -0.7071089632 | H15: -0.8660267883 | I15: -0.9659264069 | J15: -0.9999998366 | K15: -0.9659250333 | L15: -0.8660241347 | M15: -0.7071052105 | N15: -0.4999983045 | O15: -0.2588173865 | P15: 1.490193346e-06 | Q15: 0.2588202765 | R15: 0.5000009294 | S15: 0.7071074137 | T15: 0.8660257883 | U15: 0.9659260469 | V15: 1.000000163 | W15: 0.9659260469 | X15: 0.8660257883 | Y15: 0.7071074137 | Z15: 0.5000009294 | AA15: 0.2588202765 | AB15: 1.490193346e-06 | AC15: -0.2588173865 | AD15: -0.4999983045 | AE15: -0.7071052105 | AF15: -0.8660241347 | AG15: -0.9659250333 | AH15: -0.9999998366 | AI15: -0.9659264069 | AJ15: -0.8660267883 | AK15: -0.7071089632 | AL15: -0.5000029007 | AM15: -0.2588225129 | AN15: -3.816986241e-06
A16: -14 | C16: -3.9269875 | D16: -3.749305037e-06 | E16: -0.2588224452 | F16: -0.500002833 | G16: -0.7071088956 | H16: -0.8660267206 | I16: -0.9659263392 | J16: -0.9999997689 | K16: -0.9659249656 | L16: -0.866024067 | M16: -0.7071051428 | N16: -0.4999982369 | O16: -0.2588173188 | P16: 1.557874551e-06 | Q16: 0.2588203442 | R16: 0.5000009971 | S16: 0.7071074814 | T16: 0.866025856 | U16: 0.9659261146 | V16: 1.000000231 | W16: 0.9659261146 | X16: 0.866025856 | Y16: 0.7071074814 | Z16: 0.5000009971 | AA16: 0.2588203442 | AB16: 1.557874551e-06 | AC16: -0.2588173188 | AD16: -0.4999982369 | AE16: -0.7071051428 | AF16: -0.866024067 | AG16: -0.9659249656 | AH16: -0.9999997689 | AI16: -0.9659263392 | AJ16: -0.8660267206 | AK16: -0.7071088956 | AL16: -0.500002833 | AM16: -0.2588224452 | AN16: -3.749305037e-06
A17: -13 | C17: -3.665188333 | D17: -3.697371502e-06 | E17: -0.2588223932 | F17: -0.5000027811 | G17: -0.7071088436 | H17: -0.8660266687 | I17: -0.9659262873 | J17: -0.999999717 | K17: -0.9659249137 | L17: -0.8660240151 | M17: -0.7071050909 | N17: -0.4999981849 | O17: -0.2588172669 | P17: 1.609808085e-06 | Q17: 0.2588203961 | R17: 0.500001049 | S17: 0.7071075333 | T17: 0.8660259079 | U17: 0.9659261665 | V17: 1.000000283 | W17: 0.9659261665 | X17: 0.8660259079 | Y17: 0.7071075333 | Z17: 0.500001049 | AA17: 0.2588203961 | AB17: 1.609808085e-06 | AC17: -0.2588172669 | AD17: -0.4999981849 | AE17: -0.7071050909 | AF17: -0.8660240151 | AG17: -0.9659249137 | AH17: -0.999999717 | AI17: -0.9659262873 | AJ17: -0.8660266687 | AK17: -0.7071088436 | AL17: -0.5000027811 | AM17: -0.2588223932 | AN17: -3.697371502e-06
A18: -12 | C18: -3.403389167 | D18: -3.664724817e-06 | E18: -0.2588223606 | F18: -0.5000027484 | G18: -0.707108811 | H18: -0.866026636 | I18: -0.9659262547 | J18: -0.9999996843 | K18: -0.9659248811 | L18: -0.8660239825 | M18: -0.7071050582 | N18: -0.4999981523 | O18: -0.2588172343 | P18: 1.64245477e-06 | Q18: 0.2588204288 | R18: 0.5000010817 | S18: 0.7071075659 | T18: 0.8660259406 | U18: 0.9659261992 | V18: 1.000000316 | W18: 0.9659261992 | X18: 0.8660259406 | Y18: 0.7071075659 | Z18: 0.5000010817 | AA18: 0.2588204288 | AB18: 1.64245477e-06 | AC18: -0.2588172343 | AD18: -0.4999981523 | AE18: -0.7071050582 | AF18: -0.8660239825 | AG18: -0.9659248811 | AH18: -0.9999996843 | AI18: -0.9659262547 | AJ18: -0.866026636 | AK18: -0.707108811 | AL18: -0.5000027484 | AM18: -0.2588223606 | AN18: -3.664724817e-06
A19: -11 | C19: -3.14159 | D19: -3.653589794e-06 | E19: -0.2588223495 | F19: -0.5000027373 | G19: -0.7071087999 | H19: -0.8660266249 | I19: -0.9659262435 | J19: -0.9999996732 | K19: -0.9659248699 | L19: -0.8660239713 | M19: -0.7071050471 | N19: -0.4999981412 | O19: -0.2588172231 | P19: 1.653589793e-06 | Q19: 0.2588204399 | R19: 0.5000010928 | S19: 0.7071075771 | T19: 0.8660259517 | U19: 0.9659262103 | V19: 1.000000327 | W19: 0.9659262103 | X19: 0.8660259517 | Y19: 0.7071075771 | Z19: 0.5000010928 | AA19: 0.2588204399 | AB19: 1.653589793e-06 | AC19: -0.2588172231 | AD19: -0.4999981412 | AE19: -0.7071050471 | AF19: -0.8660239713 | AG19: -0.9659248699 | AH19: -0.9999996732 | AI19: -0.9659262435 | AJ19: -0.8660266249 | AK19: -0.7071087999 | AL19: -0.5000027373 | AM19: -0.2588223495 | AN19: -3.653589794e-06
A20: -10 | C20: -2.879790833 | D20: -3.664725266e-06 | E20: -0.2588223606 | F20: -0.5000027484 | G20: -0.707108811 | H20: -0.866026636 | I20: -0.9659262547 | J20: -0.9999996843 | K20: -0.9659248811 | L20: -0.8660239825 | M20: -0.7071050582 | N20: -0.4999981523 | O20: -0.2588172343 | P20: 1.642454321e-06 | Q20: 0.2588204287 | R20: 0.5000010817 | S20: 0.7071075659 | T20: 0.8660259406 | U20: 0.9659261992 | V20: 1.000000316 | W20: 0.9659261992 | X20: 0.8660259406 | Y20: 0.7071075659 | Z20: 0.5000010817 | AA20: 0.2588204287 | AB20: 1.642454321e-06 | AC20: -0.2588172343 | AD20: -0.4999981523 | AE20: -0.7071050582 | AF20: -0.8660239825 | AG20: -0.9659248811 | AH20: -0.9999996843 | AI20: -0.9659262547 | AJ20: -0.866026636 | AK20: -0.707108811 | AL20: -0.5000027484 | AM20: -0.2588223606 | AN20: -3.664725266e-06
A21: -9 | C21: -2.617991667 | D21: -3.69737237e-06 | E21: -0.2588223932 | F21: -0.5000027811 | G21: -0.7071088436 | H21: -0.8660266687 | I21: -0.9659262873 | J21: -0.999999717 | K21: -0.9659249137 | L21: -0.8660240151 | M21: -0.7071050909 | N21: -0.4999981849 | O21: -0.2588172669 | P21: 1.609807218e-06 | Q21: 0.2588203961 | R21: 0.500001049 | S21: 0.7071075333 | T21: 0.8660259079 | U21: 0.9659261665 | V21: 1.000000283 | W21: 0.9659261665 | X21: 0.8660259079 | Y21: 0.7071075333 | Z21: 0.500001049 | AA21: 0.2588203961 | AB21: 1.609807218e-06 | AC21: -0.2588172669 | AD21: -0.4999981849 | AE21: -0.7071050909 | AF21: -0.8660240151 | AG21: -0.9659249137 | AH21: -0.999999717 | AI21: -0.9659262873 | AJ21: -0.8660266687 | AK21: -0.7071088436 | AL21: -0.5000027811 | AM21: -0.2588223932 | AN21: -3.69737237e-06
A22: -8 | C22: -2.3561925 | D22: -3.749306263e-06 | E22: -0.2588224452 | F22: -0.500002833 | G22: -0.7071088956 | H22: -0.8660267206 | I22: -0.9659263392 | J22: -0.9999997689 | K22: -0.9659249656 | L22: -0.866024067 | M22: -0.7071051428 | N22: -0.4999982369 | O22: -0.2588173188 | P22: 1.557873324e-06 | Q22: 0.2588203442 | R22: 0.5000009971 | S22: 0.7071074814 | T22: 0.866025856 | U22: 0.9659261146 | V22: 1.000000231 | W22: 0.9659261146 | X22: 0.866025856 | Y22: 0.7071074814 | Z22: 0.5000009971 | AA22: 0.2588203442 | AB22: 1.557873324e-06 | AC22: -0.2588173188 | AD22: -0.4999982369 | AE22: -0.7071051428 | AF22: -0.866024067 | AG22: -0.9659249656 | AH22: -0.9999997689 | AI22: -0.9659263392 | AJ22: -0.8660267206 | AK22: -0.7071088956 | AL22: -0.500002833 | AM22: -0.2588224452 | AN22: -3.749306263e-06
A23: -7 | C23: -2.094393333 | D23: -3.816987743e-06 | E23: -0.2588225129 | F23: -0.5000029007 | G23: -0.7071089632 | H23: -0.8660267883 | I23: -0.9659264069 | J23: -0.9999998366 | K23: -0.9659250333 | L23: -0.8660241347 | M23: -0.7071052105 | N23: -0.4999983046 | O23: -0.2588173865 | P23: 1.490191844e-06 | Q23: 0.2588202765 | R23: 0.5000009294 | S23: 0.7071074137 | T23: 0.8660257883 | U23: 0.9659260469 | V23: 1.000000163 | W23: 0.9659260469 | X23: 0.8660257883 | Y23: 0.7071074137 | Z23: 0.5000009294 | AA23: 0.2588202765 | AB23: 1.490191844e-06 | AC23: -0.2588173865 | AD23: -0.4999983046 | AE23: -0.7071052105 | AF23: -0.8660241347 | AG23: -0.9659250333 | AH23: -0.9999998366 | AI23: -0.9659264069 | AJ23: -0.8660267883 | AK23: -0.7071089632 | AL23: -0.5000029007 | AM23: -0.2588225129 | AN23: -3.816987743e-06
A24: -6 | C24: -1.832594167 | D24: -3.895804436e-06 | E24: -0.2588225917 | F24: -0.5000029795 | G24: -0.7071090421 | H24: -0.8660268671 | I24: -0.9659264857 | J24: -0.9999999154 | K24: -0.9659251121 | L24: -0.8660242135 | M24: -0.7071052893 | N24: -0.4999983834 | O24: -0.2588174653 | P24: 1.411375151e-06 | Q24: 0.2588201977 | R24: 0.5000008506 | S24: 2 | T24: 0.8660257095 | U24: 0.9659259681 | V24: 1.000000085 | W24: 0.9659259681 | X24: 0.8660257095 | Y24: 2 | Z24: 0.5000008506 | AA24: 0.2588201977 | AB24: 1.411375151e-06 | AC24: -0.2588174653 | AD24: -0.4999983834 | AE24: -0.7071052893 | AF24: -0.8660242135 | AG24: -0.9659251121 | AH24: -0.9999999154 | AI24: -0.9659264857 | AJ24: -0.8660268671 | AK24: -0.7071090421 | AL24: -0.5000029795 | AM24: -0.2588225917 | AN24: -3.895804436e-06
A25: -5 | C25: -1.570795 | D25: -3.980385124e-06 | E25: -0.2588226763 | F25: -0.5000030641 | G25: -0.7071091266 | H25: -0.8660269517 | I25: -0.9659265703 | J25: -1 | K25: -0.9659251967 | L25: -0.8660242981 | M25: -0.7071053739 | N25: -0.4999984679 | O25: -0.2588175499 | P25: 1.326794463e-06 | Q25: 0.2588201131 | R25: 2 | S25: 2 | T25: 2 | U25: 0.9659258835 | V25: 1 | W25: 0.9659258835 | X25: 2 | Y25: 2 | Z25: 2 | AA25: 0.2588201131 | AB25: 1.326794463e-06 | AC25: -0.2588175499 | AD25: -0.4999984679 | AE25: -0.7071053739 | AF25: -0.8660242981 | AG25: -0.9659251967 | AH25: -1 | AI25: -0.9659265703 | AJ25: -0.8660269517 | AK25: -0.7071091266 | AL25: -0.5000030641 | AM25: -0.2588226763 | AN25: -3.980385124e-06
A26: -4 | C26: -1.308995833 | D26: -4.064965783e-06 | E26: -0.2588227608 | F26: -0.5000031487 | G26: -0.7071092112 | H26: -0.8660270363 | I26: -0.9659266549 | J26: -1.000000085 | K26: -0.9659252813 | L26: -0.8660243827 | M26: -0.7071054585 | N26: -0.4999985525 | O26: -0.2588176345 | P26: 1.242213805e-06 | Q26: 0.2588200285 | R26: 0.5000006814 | S26: 2 | T26: 0.8660255403 | U26: 0.9659257989 | V26: 0.9999999154 | W26: 0.9659257989 | X26: 0.8660255403 | Y26: 2 | Z26: 0.5000006814 | AA26: 0.2588200285 | AB26: 1.242213805e-06 | AC26: -0.2588176345 | AD26: -0.4999985525 | AE26: -0.7071054585 | AF26: -0.8660243827 | AG26: -0.9659252813 | AH26: -1.000000085 | AI26: -0.9659266549 | AJ26: -0.8660270363 | AK26: -0.7071092112 | AL26: -0.5000031487 | AM26: -0.2588227608 | AN26: -4.064965783e-06
A27: -3 | C27: -1.047196667 | D27: -4.143782389e-06 | E27: -0.2588228397 | F27: -0.5000032275 | G27: -0.70710929 | H27: -0.8660271151 | I27: -0.9659267337 | J27: -1.000000163 | K27: -0.9659253601 | L27: -0.8660244615 | M27: -0.7071055373 | N27: -0.4999986313 | O27: -0.2588177133 | P27: 1.163397198e-06 | Q27: 0.2588199497 | R27: 0.5000006026 | S27: 0.7071070869 | T27: =+IF((((((T$11-$F$1)^2)+(($C27-$F$2)^2))<0.1)+((((T$11-$F$3)^2)+(($C27-$F$4)^2))<0.1)),2,COS(T$11)*COS($C$4*$C$3)-COS($C27)*COS($C$4*$C$3+3.141592/2)) -> 0.8660254615 | U27: 0.9659257201 | V27: 0.9999998366 | W27: 0.9659257201 | X27: 0.8660254615 | Y27: 0.7071070869 | Z27: 0.5000006026 | AA27: 0.2588199497 | AB27: 1.163397198e-06 | AC27: -0.2588177133 | AD27: -0.4999986313 | AE27: -0.7071055373 | AF27: -0.8660244615 | AG27: -0.9659253601 | AH27: -1.000000163 | AI27: -0.9659267337 | AJ27: =+IF((((((AJ$11-$F$1)^2)+(($C27-$F$2)^2))<0.1)+((((AJ$11-$F$3)^2)+(($C27-$F$4)^2))<0.1)),2,COS(AJ$11)*COS($C$4*$C$3)-COS($C27)*COS($C$4*$C$3+3.141592/2)) -> -0.8660271151 | AK27: -0.70710929 | AL27: -0.5000032275 | AM27: -0.2588228397 | AN27: -4.143782389e-06
A28: -2 | C28: -0.7853975 | D28: -4.211463731e-06 | E28: -0.2588229073 | F28: -0.5000032952 | G28: -0.7071093577 | H28: -0.8660271828 | I28: -0.9659268014 | J28: -1.000000231 | K28: -0.9659254278 | L28: -0.8660245292 | M28: -0.707105605 | N28: -0.499998699 | O28: -0.258817781 | P28: 1.095715856e-06 | Q28: 0.258819882 | R28: 0.5000005349 | S28: 0.7071070192 | T28: 0.8660253938 | U28: 0.9659256524 | V28: 0.9999997689 | W28: 0.9659256524 | X28: 0.8660253938 | Y28: 0.7071070192 | Z28: 0.5000005349 | AA28: 0.258819882 | AB28: 1.095715856e-06 | AC28: -0.258817781 | AD28: -0.499998699 | AE28: -0.707105605 | AF28: -0.8660245292 | AG28: -0.9659254278 | AH28: -1.000000231 | AI28: -0.9659268014 | AJ28: -0.8660271828 | AK28: -0.7071093577 | AL28: -0.5000032952 | AM28: -0.2588229073 | AN28: -4.211463731e-06
A29: -1 | C29: -0.5235983333 | D29: =+IF((((((D$11-$F$1)^2)+(($C29-$F$2)^2))<0.1)+((((D$11-$F$3)^2)+(($C29-$F$4)^2))<0.1)),2,COS(D$11)*COS($C$4*$C$3)-COS($C29)*COS($C$4*$C$3+3.141592/2)) -> -4.263397445e-06 | E29: -0.2588229593 | F29: -0.5000033471 | G29: -0.7071094097 | H29: -0.8660272347 | I29: -0.9659268533 | J29: -1.000000283 | K29: -0.9659254797 | L29: -0.8660245811 | M29: -0.7071056569 | N29: -0.499998751 | O29: -0.2588178329 | P29: 1.043782142e-06 | Q29: 0.2588198301 | R29: 0.500000483 | S29: 0.7071069673 | T29: 0.8660253419 | U29: 0.9659256005 | V29: 0.999999717 | W29: 0.9659256005 | X29: 0.8660253419 | Y29: 0.7071069673 | Z29: 0.500000483 | AA29: 0.2588198301 | AB29: 1.043782142e-06 | AC29: -0.2588178329 | AD29: -0.499998751 | AE29: -0.7071056569 | AF29: -0.8660245811 | AG29: -0.9659254797 | AH29: -1.000000283 | AI29: -0.9659268533 | AJ29: -0.8660272347 | AK29: -0.7071094097 | AL29: -0.5000033471 | AM29: -0.2588229593 | AN29: -4.263397445e-06
A30: 0 | C30: -0.2617991667 | D30: -4.29604434e-06 | E30: -0.2588229919 | F30: -0.5000033798 | G30: -0.7071094423 | H30: -0.8660272674 | I30: -0.965926886 | J30: -1.000000316 | K30: -0.9659255124 | L30: -0.8660246138 | M30: -0.7071056896 | N30: -0.4999987836 | O30: -0.2588178656 | P30: 1.011135248e-06 | Q30: 0.2588197974 | R30: 0.5000004504 | S30: 0.7071069346 | T30: 0.8660253093 | U30: 0.9659255679 | V30: 0.9999996843 | W30: 0.9659255679 | X30: 0.8660253093 | Y30: 0.7071069346 | Z30: 0.5000004504 | AA30: 0.2588197974 | AB30: 1.011135248e-06 | AC30: -0.2588178656 | AD30: -0.4999987836 | AE30: -0.7071056896 | AF30: -0.8660246138 | AG30: -0.9659255124 | AH30: -1.000000316 | AI30: -0.965926886 | AJ30: -0.8660272674 | AK30: -0.7071094423 | AL30: -0.5000033798 | AM30: -0.2588229919 | AN30: -4.29604434e-06
A31: 1 | C31: 0 | D31: -4.307179587e-06 | E31: -0.2588230031 | F31: -0.5000033909 | G31: -0.7071094534 | H31: -0.8660272785 | I31: -0.9659268971 | J31: -1.000000327 | K31: -0.9659255235 | L31: -0.8660246249 | M31: -0.7071057007 | N31: -0.4999987947 | O31: -0.2588178767 | P31: 1e-06 | Q31: 0.2588197863 | R31: 0.5000004392 | S31: 0.7071069235 | T31: 0.8660252981 | U31: 0.9659255567 | V31: 0.9999996732 | W31: 0.9659255567 | X31: 0.8660252981 | Y31: 0.7071069235 | Z31: 0.5000004392 | AA31: 0.2588197863 | AB31: 1e-06 | AC31: -0.2588178767 | AD31: -0.4999987947 | AE31: -0.7071057007 | AF31: -0.8660246249 | AG31: -0.9659255235 | AH31: -1.000000327 | AI31: -0.9659268971 | AJ31: -0.8660272785 | AK31: -0.7071094534 | AL31: -0.5000033909 | AM31: -0.2588230031 | AN31: -4.307179587e-06
A32: 2 | C32: 0.2617991667 | D32: -4.29604434e-06 | E32: -0.2588229919 | F32: -0.5000033798 | G32: -0.7071094423 | H32: -0.8660272674 | I32: -0.965926886 | J32: -1.000000316 | K32: -0.9659255124 | L32: -0.8660246138 | M32: -0.7071056896 | N32: -0.4999987836 | O32: -0.2588178656 | P32: 1.011135248e-06 | Q32: 0.2588197974 | R32: 0.5000004504 | S32: 0.7071069346 | T32: 0.8660253093 | U32: 0.9659255679 | V32: 0.9999996843 | W32: 0.9659255679 | X32: 0.8660253093 | Y32: 0.7071069346 | Z32: 0.5000004504 | AA32: 0.2588197974 | AB32: 1.011135248e-06 | AC32: -0.2588178656 | AD32: -0.4999987836 | AE32: -0.7071056896 | AF32: -0.8660246138 | AG32: -0.9659255124 | AH32: -1.000000316 | AI32: -0.965926886 | AJ32: -0.8660272674 | AK32: -0.7071094423 | AL32: -0.5000033798 | AM32: -0.2588229919 | AN32: -4.29604434e-06
A33: 3 | C33: 0.5235983333 | D33: -4.263397445e-06 | E33: -0.2588229593 | F33: -0.5000033471 | G33: -0.7071094097 | H33: -0.8660272347 | I33: -0.9659268533 | J33: -1.000000283 | K33: -0.9659254797 | L33: -0.8660245811 | M33: -0.7071056569 | N33: -0.499998751 | O33: -0.2588178329 | P33: 1.043782142e-06 | Q33: 0.2588198301 | R33: 0.500000483 | S33: 0.7071069673 | T33: 0.8660253419 | U33: 0.9659256005 | V33: 0.999999717 | W33: 0.9659256005 | X33: 0.8660253419 | Y33: 0.7071069673 | Z33: 0.500000483 | AA33: 0.2588198301 | AB33: 1.043782142e-06 | AC33: -0.2588178329 | AD33: -0.499998751 | AE33: -0.7071056569 | AF33: -0.8660245811 | AG33: -0.9659254797 | AH33: -1.000000283 | AI33: -0.9659268533 | AJ33: -0.8660272347 | AK33: -0.7071094097 | AL33: -0.5000033471 | AM33: -0.2588229593 | AN33: -4.263397445e-06
A34: 4 | C34: 0.7853975 | D34: -4.211463731e-06 | E34: -0.2588229073 | F34: -0.5000032952 | G34: -0.7071093577 | H34: -0.8660271828 | I34: -0.9659268014 | J34: -1.000000231 | K34: -0.9659254278 | L34: -0.8660245292 | M34: -0.707105605 | N34: -0.499998699 | O34: -0.258817781 | P34: 1.095715856e-06 | Q34: 0.258819882 | R34: 0.5000005349 | S34: 0.7071070192 | T34: 0.8660253938 | U34: 0.9659256524 | V34: 0.9999997689 | W34: 0.9659256524 | X34: 0.8660253938 | Y34: 0.7071070192 | Z34: 0.5000005349 | AA34: 0.258819882 | AB34: 1.095715856e-06 | AC34: -0.258817781 | AD34: -0.499998699 | AE34: -0.707105605 | AF34: -0.8660245292 | AG34: -0.9659254278 | AH34: -1.000000231 | AI34: -0.9659268014 | AJ34: -0.8660271828 | AK34: -0.7071093577 | AL34: -0.5000032952 | AM34: -0.2588229073 | AN34: -4.211463731e-06
A35: 5 | C35: 1.047196667 | D35: -4.143782389e-06 | E35: -0.2588228397 | F35: -0.5000032275 | G35: -0.70710929 | H35: -0.8660271151 | I35: -0.9659267337 | J35: -1.000000163 | K35: -0.9659253601 | L35: -0.8660244615 | M35: -0.7071055373 | N35: -0.4999986313 | O35: -0.2588177133 | P35: 1.163397198e-06 | Q35: 0.2588199497 | R35: 0.5000006026 | S35: 0.7071070869 | T35: 0.8660254615 | U35: 0.9659257201 | V35: 0.9999998366 | W35: 0.9659257201 | X35: 0.8660254615 | Y35: 0.7071070869 | Z35: 0.5000006026 | AA35: 0.2588199497 | AB35: 1.163397198e-06 | AC35: -0.2588177133 | AD35: -0.4999986313 | AE35: -0.7071055373 | AF35: -0.8660244615 | AG35: -0.9659253601 | AH35: -1.000000163 | AI35: -0.9659267337 | AJ35: -0.8660271151 | AK35: -0.70710929 | AL35: -0.5000032275 | AM35: -0.2588228397 | AN35: -4.143782389e-06
A36: 6 | C36: 1.308995833 | D36: -4.064965783e-06 | E36: -0.2588227608 | F36: -0.5000031487 | G36: -0.7071092112 | H36: -0.8660270363 | I36: -0.9659266549 | J36: -1.000000085 | K36: -0.9659252813 | L36: -0.8660243827 | M36: -0.7071054585 | N36: -0.4999985525 | O36: -0.2588176345 | P36: 1.242213805e-06 | Q36: 0.2588200285 | R36: 0.5000006814 | S36: 0.7071071657 | T36: 0.8660255403 | U36: 0.9659257989 | V36: 0.9999999154 | W36: 0.9659257989 | X36: 0.8660255403 | Y36: 0.7071071657 | Z36: 0.5000006814 | AA36: 0.2588200285 | AB36: 1.242213805e-06 | AC36: -0.2588176345 | AD36: -0.4999985525 | AE36: -0.7071054585 | AF36: -0.8660243827 | AG36: -0.9659252813 | AH36: -1.000000085 | AI36: -0.9659266549 | AJ36: -0.8660270363 | AK36: -0.7071092112 | AL36: -0.5000031487 | AM36: -0.2588227608 | AN36: -4.064965783e-06
A37: 7 | C37: 1.570795 | D37: -3.980385124e-06 | E37: -0.2588226763 | F37: -0.5000030641 | G37: -0.7071091266 | H37: -0.8660269517 | I37: -0.9659265703 | J37: -1 | K37: -0.9659251967 | L37: -0.8660242981 | M37: -0.7071053739 | N37: -0.4999984679 | O37: -0.2588175499 | P37: 1.326794463e-06 | Q37: 0.2588201131 | R37: 0.500000766 | S37: 0.7071072503 | T37: 0.8660256249 | U37: 0.9659258835 | V37: 1 | W37: 0.9659258835 | X37: 0.8660256249 | Y37: 0.7071072503 | Z37: 0.500000766 | AA37: 0.2588201131 | AB37: 1.326794463e-06 | AC37: -0.2588175499 | AD37: -0.4999984679 | AE37: -0.7071053739 | AF37: -0.8660242981 | AG37: -0.9659251967 | AH37: -1 | AI37: -0.9659265703 | AJ37: -0.8660269517 | AK37: -0.7071091266 | AL37: -0.5000030641 | AM37: -0.2588226763 | AN37: -3.980385124e-06
A38: 8 | C38: 1.832594167 | D38: -3.895804436e-06 | E38: -0.2588225917 | F38: -0.5000029795 | G38: -0.7071090421 | H38: -0.8660268671 | I38: -0.9659264857 | J38: -0.9999999154 | K38: -0.9659251121 | L38: -0.8660242135 | M38: -0.7071052893 | N38: -0.4999983834 | O38: -0.2588174653 | P38: 1.411375151e-06 | Q38: 0.2588201977 | R38: 0.5000008506 | S38: 0.7071073349 | T38: 0.8660257095 | U38: 0.9659259681 | V38: 1.000000085 | W38: 0.9659259681 | X38: 0.8660257095 | Y38: 0.7071073349 | Z38: 0.5000008506 | AA38: 0.2588201977 | AB38: 1.411375151e-06 | AC38: -0.2588174653 | AD38: -0.4999983834 | AE38: -0.7071052893 | AF38: -0.8660242135 | AG38: -0.9659251121 | AH38: -0.9999999154 | AI38: -0.9659264857 | AJ38: -0.8660268671 | AK38: -0.7071090421 | AL38: -0.5000029795 | AM38: -0.2588225917 | AN38: -3.895804436e-06
A39: 9 | C39: 2.094393333 | D39: -3.816987743e-06 | E39: -0.2588225129 | F39: -0.5000029007 | G39: -0.7071089632 | H39: -0.8660267883 | I39: -0.9659264069 | J39: -0.9999998366 | K39: -0.9659250333 | L39: -0.8660241347 | M39: -0.7071052105 | N39: -0.4999983046 | O39: -0.2588173865 | P39: 1.490191844e-06 | Q39: 0.2588202765 | R39: 0.5000009294 | S39: 0.7071074137 | T39: 0.8660257883 | U39: 0.9659260469 | V39: 1.000000163 | W39: 0.9659260469 | X39: 0.8660257883 | Y39: 0.7071074137 | Z39: 0.5000009294 | AA39: 0.2588202765 | AB39: 1.490191844e-06 | AC39: -0.2588173865 | AD39: -0.4999983046 | AE39: -0.7071052105 | AF39: -0.8660241347 | AG39: -0.9659250333 | AH39: -0.9999998366 | AI39: -0.9659264069 | AJ39: -0.8660267883 | AK39: -0.7071089632 | AL39: -0.5000029007 | AM39: -0.2588225129 | AN39: -3.816987743e-06
A40: 10 | C40: 2.3561925 | D40: -3.749306263e-06 | E40: -0.2588224452 | F40: -0.500002833 | G40: -0.7071088956 | H40: -0.8660267206 | I40: -0.9659263392 | J40: -0.9999997689 | K40: -0.9659249656 | L40: -0.866024067 | M40: -0.7071051428 | N40: -0.4999982369 | O40: -0.2588173188 | P40: 1.557873324e-06 | Q40: 0.2588203442 | R40: 0.5000009971 | S40: 0.7071074814 | T40: 0.866025856 | U40: 0.9659261146 | V40: 1.000000231 | W40: 0.9659261146 | X40: 0.866025856 | Y40: 0.7071074814 | Z40: 0.5000009971 | AA40: 0.2588203442 | AB40: 1.557873324e-06 | AC40: -0.2588173188 | AD40: -0.4999982369 | AE40: -0.7071051428 | AF40: -0.866024067 | AG40: -0.9659249656 | AH40: -0.9999997689 | AI40: -0.9659263392 | AJ40: -0.8660267206 | AK40: -0.7071088956 | AL40: -0.500002833 | AM40: -0.2588224452 | AN40: -3.749306263e-06
A41: 11 | C41: 2.617991667 | D41: -3.69737237e-06 | E41: -0.2588223932 | F41: -0.5000027811 | G41: -0.7071088436 | H41: -0.8660266687 | I41: -0.9659262873 | J41: -0.999999717 | K41: -0.9659249137 | L41: -0.8660240151 | M41: -0.7071050909 | N41: -0.4999981849 | O41: -0.2588172669 | P41: 1.609807218e-06 | Q41: 0.2588203961 | R41: 0.500001049 | S41: 0.7071075333 | T41: 0.8660259079 | U41: 0.9659261665 | V41: 1.000000283 | W41: 0.9659261665 | X41: 0.8660259079 | Y41: 0.7071075333 | Z41: 0.500001049 | AA41: 0.2588203961 | AB41: 1.609807218e-06 | AC41: -0.2588172669 | AD41: -0.4999981849 | AE41: -0.7071050909 | AF41: -0.8660240151 | AG41: -0.9659249137 | AH41: -0.999999717 | AI41: -0.9659262873 | AJ41: -0.8660266687 | AK41: -0.7071088436 | AL41: -0.5000027811 | AM41: -0.2588223932 | AN41: -3.69737237e-06
A42: 12 | C42: 2.879790833 | D42: -3.664725266e-06 | E42: -0.2588223606 | F42: -0.5000027484 | G42: -0.707108811 | H42: -0.866026636 | I42: -0.9659262547 | J42: -0.9999996843 | K42: -0.9659248811 | L42: -0.8660239825 | M42: -0.7071050582 | N42: -0.4999981523 | O42: -0.2588172343 | P42: 1.642454321e-06 | Q42: 0.2588204287 | R42: 0.5000010817 | S42: 0.7071075659 | T42: 0.8660259406 | U42: 0.9659261992 | V42: 1.000000316 | W42: 0.9659261992 | X42: 0.8660259406 | Y42: 0.7071075659 | Z42: 0.5000010817 | AA42: 0.2588204287 | AB42: 1.642454321e-06 | AC42: -0.2588172343 | AD42: -0.4999981523 | AE42: -0.7071050582 | AF42: -0.8660239825 | AG42: -0.9659248811 | AH42: -0.9999996843 | AI42: -0.9659262547 | AJ42: -0.866026636 | AK42: -0.707108811 | AL42: -0.5000027484 | AM42: -0.2588223606 | AN42: -3.664725266e-06
A43: 13 | C43: 3.14159 | D43: -3.653589794e-06 | E43: -0.2588223495 | F43: -0.5000027373 | G43: -0.7071087999 | H43: -0.8660266249 | I43: -0.9659262435 | J43: -0.9999996732 | K43: -0.9659248699 | L43: -0.8660239713 | M43: -0.7071050471 | N43: -0.4999981412 | O43: -0.2588172231 | P43: 1.653589793e-06 | Q43: 0.2588204399 | R43: 0.5000010928 | S43: 0.7071075771 | T43: =+IF((((((T$11-$F$1)^2)+(($C43-$F$2)^2))<0.1)+((((T$11-$F$3)^2)+(($C43-$F$4)^2))<0.1)),2,COS(T$11)*COS($C$4*$C$3)-COS($C43)*COS($C$4*$C$3+3.141592/2)) -> 0.8660259517 | U43: 0.9659262103 | V43: 1.000000327 | W43: 0.9659262103 | X43: 0.8660259517 | Y43: 0.7071075771 | Z43: 0.5000010928 | AA43: 0.2588204399 | AB43: 1.653589793e-06 | AC43: -0.2588172231 | AD43: -0.4999981412 | AE43: -0.7071050471 | AF43: -0.8660239713 | AG43: -0.9659248699 | AH43: -0.9999996732 | AI43: -0.9659262435 | AJ43: =+IF((((((AJ$11-$F$1)^2)+(($C43-$F$2)^2))<0.1)+((((AJ$11-$F$3)^2)+(($C43-$F$4)^2))<0.1)),2,COS(AJ$11)*COS($C$4*$C$3)-COS($C43)*COS($C$4*$C$3+3.141592/2)) -> -0.8660266249 | AK43: -0.7071087999 | AL43: -0.5000027373 | AM43: -0.2588223495 | AN43: -3.653589794e-06
A44: 14 | C44: 3.403389167 | D44: -3.664724817e-06 | E44: -0.2588223606 | F44: -0.5000027484 | G44: -0.707108811 | H44: -0.866026636 | I44: -0.9659262547 | J44: -0.9999996843 | K44: -0.9659248811 | L44: -0.8660239825 | M44: -0.7071050582 | N44: -0.4999981523 | O44: -0.2588172343 | P44: 1.64245477e-06 | Q44: 0.2588204288 | R44: 0.5000010817 | S44: =+IF((((((S$11-$F$1)^2)+(($C44-$F$2)^2))<0.1)+((((S$11-$F$3)^2)+(($C44-$F$4)^2))<0.1)),2,COS(S$11)*COS($C$4*$C$3)-COS($C44)*COS($C$4*$C$3+3.141592/2)) -> 0.7071075659 | T44: 0.8660259406 | U44: 0.9659261992 | V44: 1.000000316 | W44: 0.9659261992 | X44: 0.8660259406 | Y44: 0.7071075659 | Z44: 0.5000010817 | AA44: 0.2588204288 | AB44: 1.64245477e-06 | AC44: -0.2588172343 | AD44: -0.4999981523 | AE44: -0.7071050582 | AF44: -0.8660239825 | AG44: -0.9659248811 | AH44: -0.9999996843 | AI44: -0.9659262547 | AJ44: -0.866026636 | AK44: -0.707108811 | AL44: -0.5000027484 | AM44: -0.2588223606 | AN44: -3.664724817e-06
A45: 15 | C45: 3.665188333 | D45: =+IF((((((D$11-$F$1)^2)+(($C45-$F$2)^2))<0.1)+((((D$11-$F$3)^2)+(($C45-$F$4)^2))<0.1)),2,COS(D$11)*COS($C$4*$C$3)-COS($C45)*COS($C$4*$C$3+3.141592/2)) -> -3.697371502e-06 | E45: -0.2588223932 | F45: -0.5000027811 | G45: -0.7071088436 | H45: -0.8660266687 | I45: -0.9659262873 | J45: -0.999999717 | K45: -0.9659249137 | L45: -0.8660240151 | M45: -0.7071050909 | N45: -0.4999981849 | O45: -0.2588172669 | P45: 1.609808085e-06 | Q45: 0.2588203961 | R45: 0.500001049 | S45: 0.7071075333 | T45: 0.8660259079 | U45: 0.9659261665 | V45: 1.000000283 | W45: 0.9659261665 | X45: 0.8660259079 | Y45: 0.7071075333 | Z45: 0.500001049 | AA45: 0.2588203961 | AB45: 1.609808085e-06 | AC45: -0.2588172669 | AD45: -0.4999981849 | AE45: -0.7071050909 | AF45: -0.8660240151 | AG45: -0.9659249137 | AH45: -0.999999717 | AI45: -0.9659262873 | AJ45: -0.8660266687 | AK45: -0.7071088436 | AL45: -0.5000027811 | AM45: -0.2588223932 | AN45: -3.697371502e-06
A46: 16 | C46: 3.9269875 | D46: -3.749305037e-06 | E46: -0.2588224452 | F46: -0.500002833 | G46: -0.7071088956 | H46: -0.8660267206 | I46: -0.9659263392 | J46: -0.9999997689 | K46: -0.9659249656 | L46: -0.866024067 | M46: -0.7071051428 | N46: -0.4999982369 | O46: -0.2588173188 | P46: 1.557874551e-06 | Q46: 0.2588203442 | R46: 0.5000009971 | S46: 0.7071074814 | T46: 0.866025856 | U46: 0.9659261146 | V46: 1.000000231 | W46: 0.9659261146 | X46: 0.866025856 | Y46: 0.7071074814 | Z46: 0.5000009971 | AA46: 0.2588203442 | AB46: 1.557874551e-06 | AC46: -0.2588173188 | AD46: -0.4999982369 | AE46: -0.7071051428 | AF46: -0.866024067 | AG46: -0.9659249656 | AH46: -0.9999997689 | AI46: -0.9659263392 | AJ46: -0.8660267206 | AK46: -0.7071088956 | AL46: -0.500002833 | AM46: -0.2588224452 | AN46: -3.749305037e-06
A47: 17 | C47: 4.188786667 | D47: -3.816986241e-06 | E47: -0.2588225129 | F47: -0.5000029007 | G47: -0.7071089632 | H47: -0.8660267883 | I47: -0.9659264069 | J47: -0.9999998366 | K47: -0.9659250333 | L47: -0.8660241347 | M47: -0.7071052105 | N47: -0.4999983045 | O47: -0.2588173865 | P47: 1.490193346e-06 | Q47: 0.2588202765 | R47: 0.5000009294 | S47: 0.7071074137 | T47: 0.8660257883 | U47: 0.9659260469 | V47: 1.000000163 | W47: 0.9659260469 | X47: 0.8660257883 | Y47: 0.7071074137 | Z47: 0.5000009294 | AA47: 0.2588202765 | AB47: 1.490193346e-06 | AC47: -0.2588173865 | AD47: -0.4999983045 | AE47: -0.7071052105 | AF47: -0.8660241347 | AG47: -0.9659250333 | AH47: -0.9999998366 | AI47: -0.9659264069 | AJ47: -0.8660267883 | AK47: -0.7071089632 | AL47: -0.5000029007 | AM47: -0.2588225129 | AN47: -3.816986241e-06
A48: 18 | C48: 4.450585833 | D48: -3.895802761e-06 | E48: -0.2588225917 | F48: -0.5000029795 | G48: -0.7071090421 | H48: -0.8660268671 | I48: -0.9659264857 | J48: -0.9999999154 | K48: -0.9659251121 | L48: -0.8660242135 | M48: -0.7071052893 | N48: -0.4999983834 | O48: -0.2588174653 | P48: 1.411376826e-06 | Q48: 0.2588201977 | R48: 0.5000008506 | S48: 0.7071073349 | T48: 0.8660257095 | U48: 0.9659259681 | V48: 1.000000085 | W48: 0.9659259681 | X48: 0.8660257095 | Y48: 0.7071073349 | Z48: 0.5000008506 | AA48: 0.2588201977 | AB48: 1.411376826e-06 | AC48: -0.2588174653 | AD48: -0.4999983834 | AE48: -0.7071052893 | AF48: -0.8660242135 | AG48: -0.9659251121 | AH48: -0.9999999154 | AI48: -0.9659264857 | AJ48: -0.8660268671 | AK48: -0.7071090421 | AL48: -0.5000029795 | AM48: -0.2588225917 | AN48: -3.895802761e-06
